lending/lending_fUSD_20240401
["ID","MTS","AMOUNT","RATE_DAILY","PERIOD"]
[321185801,1711953054437,-1560.47,0.00056712,120]
[321185802,1711953054447,-246.29,0.00056712,120]
[321185803,1711953054457,-1076.22,0.00056712,120]
[321185804,1711953054466,-500.0,0.00056712,120]
[321185805,1711953054475,-1147.31,0.00056712,120]
[321185806,1711953054483,-1399.97,0.00056712,120]
[321185807,1711953054494,-500.0,0.00056712,120]
[321185808,1711953054504,-2821.67,0.00056712,120]
[321185809,1711953054513,-500.0,0.00056712,120]
[321185810,1711953054527,-570.92,0.00056712,120]
[321185811,1711953054537,-698.71,0.00056712,120]
[321185812,1711953054545,-1121.07,0.00056712,120]
[321185813,1711953054555,-500.0,0.00056712,120]
[321185814,1711953054566,-500.0,0.00056712,120]
[321185815,1711953054577,-2190.43,0.00056712,120]
[321185816,1711953054586,-551.72,0.00056712,21]
[321185817,1711953054597,-500.0,0.00056712,120]
[321185818,1711953054607,-312.53,0.00056712,120]
[321185819,1711953054616,-3879.13,0.00056712,120]
[321185820,1711953054625,-500.0,0.00056712,120]
[321185821,1711953054634,-862.75,0.00056712,120]
[321185822,1711953054643,-500.0,0.00056712,120]
[321185823,1711953054653,-500.0,0.00056712,120]
[321185824,1711953054663,-500.0,0.00056712,120]
[321185825,1711953054672,-500.0,0.00056712,120]
[321185826,1711953054681,-1658.0,0.00056712,120]
[321185827,1711953054690,-500.0,0.00056712,120]
[321185828,1711953054700,-500.0,0.00056712,120]
[321185829,1711953054709,-1160.58,0.00056712,120]
[321185830,1711953054719,-1083.7,0.00056712,120]
[321185831,1711953054728,-500.0,0.00056712,120]
[321185832,1711953054738,-1152.75,0.00056712,120]
[321185833,1711953054748,-500.0,0.00056712,120]
[321185834,1711953054757,-500.0,0.00056712,120]
[321185835,1711953054768,-500.0,0.00056712,120]
[321185836,1711953054778,-815.87,0.00056712,120]
[321185837,1711953054788,-1158.17,0.00056712,120]
[321185838,1711953054801,-500.0,0.00056712,120]
[321185839,1711953054811,-288.51267319,0.00056794,120]
[321185840,1711953054820,-1843.4395195,0.00056841,35]
[321185841,1711953054830,-500.0,0.00056986,120]
[321185842,1711953054841,-500.0,0.00056986,120]
[321185843,1711953054850,-737.05,0.00056986,120]
[321185844,1711953054860,-500.0,0.00056986,120]
[321185845,1711953054870,-500.0,0.00056986,120]
[321185846,1711953054880,-886.64,0.00056986,120]
[321185847,1711953054889,-500.0,0.00056986,120]
[321185848,1711953054898,-652.51,0.00056986,120]
[321185849,1711953054907,-500.0,0.00056986,120]
[321185850,1711953054916,-620.9,0.00056986,120]
[321185851,1711953054927,-500.0,0.00056986,120]
[321185852,1711953054936,-500.0,0.00056986,120]
[321185853,1711953054946,-566.26,0.00056986,120]
[321185854,1711953054955,-731.96,0.00056986,120]
[321185855,1711953054965,-1560.47,0.00056986,120]
[321185856,1711953054974,-1076.22,0.00056986,120]
[321185857,1711953054984,-500.0,0.00056986,120]
[321185858,1711953054993,-1147.31,0.00056986,120]
[321185859,1711953055002,-1399.97,0.00056986,120]
[321185860,1711953055011,-500.0,0.00056986,120]
[321185861,1711953055021,-2821.67,0.00056986,120]
[321185862,1711953055030,-500.0,0.00056986,120]
[321185863,1711953055039,-570.92,0.00056986,120]
[321185864,1711953055048,-698.71,0.00056986,120]
[321185865,1711953055057,-1121.07,0.00056986,120]
[321185866,1711953055066,-500.0,0.00056986,120]
[321185867,1711953055075,-500.0,0.00056986,120]
[321185868,1711953055084,-2190.43,0.00056986,120]
[321185869,1711953055093,-551.72,0.00056986,21]
[321185870,1711953055102,-500.0,0.00056986,120]
[321185871,1711953055111,-3879.13,0.00056986,120]
[321185872,1711953055120,-500.0,0.00056986,120]
[321185873,1711953055129,-862.75,0.00056986,120]
[321185874,1711953055139,-540.63,0.00056986,120]
[321185875,1711953055148,-178.75590753,0.00056986,120]
[321185876,1711953055157,-500.0,0.00056986,120]
[321185877,1711953055166,-500.0,0.00056986,120]
[321185878,1711953055174,-1658.0,0.00056986,120]
[321185879,1711953055184,-507.93308833,0.00056986,120]
[321185880,1711953055193,-500.0,0.00056986,120]
[321185881,1711953055202,-1160.58,0.00056986,120]
[321185882,1711953055211,-1083.7,0.00056986,120]
[321185883,1711953055221,-1152.75,0.00056986,120]
[321185884,1711953055230,-500.0,0.00056986,120]
[321185885,1711953055239,-500.0,0.00056986,120]
[321185886,1711953055248,-500.0,0.00056986,120]
[321185887,1711953055258,-815.87,0.00056986,120]
[321185888,1711953055269,-1158.17,0.00056986,120]
[321185889,1711953055277,-500.0,0.00056986,120]
[321185890,1711953055286,-10000.0,0.00057,14]
[321185891,1711953055295,-10000.0,0.00057,14]
[321185892,1711953055304,-150.0,0.00057,12]
[321185893,1711953055314,-500.0,0.0005701,90]
[321185894,1711953055323,-1850.59884635,0.00057185,2]
[321185895,1711953055332,-3378.50530851,0.00057217,2]
[321185896,1711953055340,-500.0,0.0005726,120]
[321185897,1711953055349,-500.0,0.0005726,120]
[321185898,1711953055358,-737.05,0.0005726,120]
[321185899,1711953055368,-500.0,0.0005726,120]
[321185900,1711953055377,-500.0,0.0005726,120]
[321185901,1711953055386,-886.64,0.0005726,120]
[321185902,1711953055396,-500.0,0.0005726,120]
[321185903,1711953055405,-652.51,0.0005726,120]
[321185904,1711953055414,-500.0,0.0005726,120]
[321185905,1711953055423,-620.9,0.0005726,120]
[321185906,1711953055433,-395.09141911,0.0005726,120]
[321185907,1711953055442,-500.0,0.0005726,120]
[321185908,1711953055451,-731.96,0.0005726,120]
[321185909,1711953055460,-1560.47,0.0005726,120]
[321185910,1711953055469,-1076.22,0.0005726,120]
[321185911,1711953055478,-500.0,0.0005726,120]
[321185912,1711953055488,-1147.31,0.0005726,120]
[321185913,1711953055497,-1399.97,0.0005726,120]
[321185914,1711953055507,-500.0,0.0005726,120]
[321185915,1711953055516,-2821.67,0.0005726,120]
[321185916,1711953055526,-500.0,0.0005726,120]
[321185917,1711953055535,-570.92,0.0005726,120]
[321185918,1711953055544,-698.71,0.0005726,120]
[321185919,1711953055554,-1121.07,0.0005726,120]
[321185920,1711953055563,-500.0,0.0005726,120]
[321185921,1711953055572,-500.0,0.0005726,120]
[321185922,1711953055581,-2190.43,0.0005726,120]
[321185923,1711953055590,-551.72,0.0005726,21]
[321185924,1711953055599,-401.47,0.0005726,120]
[321185925,1711953055608,-3879.13,0.0005726,120]
[321185926,1711953055617,-500.0,0.0005726,120]
[321185927,1711953055627,-862.75,0.0005726,120]
[321185928,1711953055635,-500.0,0.0005726,120]
[321185929,1711953055644,-500.0,0.0005726,120]
[321185930,1711953055653,-1658.0,0.0005726,120]
[321185931,1711953055663,-1160.58,0.0005726,120]
[321185932,1711953055672,-500.0,0.0005726,120]
[321185933,1711953055681,-1083.7,0.0005726,120]
[321185934,1711953055691,-1152.75,0.0005726,120]
[321185935,1711953055699,-500.0,0.0005726,120]
[321185936,1711953055709,-500.0,0.0005726,120]
[321185937,1711953055718,-500.0,0.0005726,120]
[321185938,1711953055727,-815.87,0.0005726,120]
[321185939,1711953055736,-1158.17,0.0005726,120]
[321185940,1711953055745,-500.0,0.0005726,120]
[321185941,1711953055754,-10000.0,0.000573,14]
[321185942,1711953055764,-150.0,0.000575,13]
[321185943,1711953055774,-500.0,0.00057534,120]
[321185944,1711953055787,-500.0,0.00057534,120]
[321185945,1711953055796,-737.05,0.00057534,120]
[321185946,1711953055805,-500.0,0.00057534,120]
[321185947,1711953055815,-500.0,0.00057534,120]
[321185948,1711953055824,-886.64,0.00057534,120]
[321185949,1711953055834,-500.0,0.00057534,120]
[321185950,1711953055843,-652.51,0.00057534,120]
[321185951,1711953055852,-500.0,0.00057534,120]
[321185952,1711953055862,-620.9,0.00057534,120]
[321185953,1711953055873,-500.0,0.00057534,120]
[321185954,1711953055882,-731.96,0.00057534,120]
[321185955,1711953055892,-1560.47,0.00057534,120]
[321185956,1711953055902,-1076.22,0.00057534,120]
[321185957,1711953055912,-500.0,0.00057534,120]
[321185958,1711953055922,-1147.31,0.00057534,120]
[321185959,1711953055932,-1399.97,0.00057534,120]
[321185960,1711953055942,-500.0,0.00057534,120]
[321185961,1711953055951,-2821.67,0.00057534,120]
[321185962,1711953055960,-500.0,0.00057534,120]
[321185963,1711953055969,-570.92,0.00057534,120]
[321185964,1711953055978,-698.71,0.00057534,120]
[321185965,1711953055987,-1121.07,0.00057534,120]
[321185966,1711953055996,-500.0,0.00057534,120]
[321185967,1711953056005,-500.0,0.00057534,120]
[321185968,1711953056014,-2190.43,0.00057534,120]
[321185969,1711953056025,-551.72,0.00057534,21]
[321185970,1711953056034,-3879.13,0.00057534,120]
[321185971,1711953056043,-403.58,0.00057534,120]
[321185972,1711953056052,-862.75,0.00057534,120]
[321185973,1711953056061,-500.0,0.00057534,120]
[321185974,1711953056070,-500.0,0.00057534,120]
[321185975,1711953056079,-1658.0,0.00057534,120]
[321185976,1711953056089,-1160.58,0.00057534,120]
[321185977,1711953056098,-500.0,0.00057534,120]
[321185978,1711953056108,-1083.7,0.00057534,120]
[321185979,1711953056118,-1152.75,0.00057534,120]
[321185980,1711953056128,-500.0,0.00057534,120]
[321185981,1711953056138,-500.0,0.00057534,120]
[321185982,1711953056148,-500.0,0.00057534,120]
[321185983,1711953056158,-815.87,0.00057534,120]
[321185984,1711953056167,-1158.17,0.00057534,120]
[321185985,1711953056176,-500.0,0.00057534,120]
[321185986,1711953056185,-500.0,0.00057558,90]
[321185987,1711953056195,-10000.0,0.000576,14]
[321185988,1711953056204,-210.0,0.0005769,30]
[321185989,1711953056213,-1104.0,0.000577,17]
[321185990,1711953056222,-1028.0,0.00057759,120]
[321185991,1711953056231,-194.0,0.00057808,120]
[321185992,1711953056240,-500.0,0.00057808,120]
[321185993,1711953056249,-737.05,0.00057808,120]
[321185994,1711953056259,-500.0,0.00057808,120]
[321185995,1711953056270,-203.37527704,0.00057808,120]
[321185996,1711953056279,-886.64,0.00057808,120]
[321185997,1711953056289,-500.0,0.00057808,120]
[321185998,1711953056299,-652.51,0.00057808,120]
[321185999,1711953056309,-500.0,0.00057808,120]
[321186000,1711953056318,-620.9,0.00057808,120]
[321186001,1711953056327,-500.0,0.00057808,120]
[321186002,1711953056338,-731.96,0.00057808,120]
[321186003,1711953056348,-1560.47,0.00057808,120]
[321186004,1711953056359,-1076.22,0.00057808,120]
[321186005,1711953056368,-500.0,0.00057808,120]
[321186006,1711953056378,-1147.31,0.00057808,120]
[321186007,1711953056387,-1399.97,0.00057808,120]
[321186008,1711953056396,-182.3962913,0.00057808,120]
[321186009,1711953056406,-2821.67,0.00057808,120]
[321186010,1711953056416,-500.0,0.00057808,120]
[321186011,1711953056428,-570.92,0.00057808,120]
[321186012,1711953056438,-698.71,0.00057808,120]
[321186013,1711953056447,-1121.07,0.00057808,120]
[321186014,1711953056457,-500.0,0.00057808,120]
[321186015,1711953056467,-349.96,0.00057808,120]
[321186016,1711953056477,-2190.43,0.00057808,120]
[321186017,1711953056487,-551.72,0.00057808,21]
[321186018,1711953056497,-3879.13,0.00057808,120]
[321186019,1711953056507,-862.75,0.00057808,120]
[321186020,1711953056516,-500.0,0.00057808,120]
[321186021,1711953056526,-500.0,0.00057808,120]
[321186022,1711953056535,-1658.0,0.00057808,120]
[321186023,1711953056545,-500.0,0.00057808,120]
[321186024,1711953056555,-1083.7,0.00057808,120]
[321186025,1711953056564,-1160.58,0.00057808,120]
[321186026,1711953056574,-1152.75,0.00057808,120]
[321186027,1711953056583,-232.86,0.00057808,120]
[321186028,1711953056592,-500.0,0.00057808,120]
[321186029,1711953056601,-500.0,0.00057808,120]
[321186030,1711953056611,-815.87,0.00057808,120]
[321186031,1711953056620,-1158.17,0.00057808,120]
[321186032,1711953056629,-500.0,0.00057808,120]
[321186033,1711953056639,-164.33763766,0.0005789,120]
[321186034,1711953056649,-10000.0,0.000579,14]
[321186035,1711953056659,-170.23708642,0.000579,120]
[321186036,1711953056669,-170.23708636,0.000579,120]
[321186037,1711953056678,-170.23708636,0.000579,120]
[321186038,1711953056687,-170.23708636,0.000579,120]
[321186039,1711953056696,-170.23708636,0.000579,120]
[321186040,1711953056705,-170.23708636,0.000579,120]
[321186041,1711953056714,-170.23708636,0.000579,120]
[321186042,1711953056723,-170.23708636,0.000579,120]
[321186043,1711953056732,-170.23708636,0.000579,120]
[321186044,1711953056741,-170.23708636,0.000579,120]
[321186045,1711953056751,-170.23708636,0.000579,120]
[321186046,1711953056760,-170.23708636,0.000579,120]
[321186047,1711953056771,-170.23708636,0.000579,120]
[321186048,1711953056780,-170.23708636,0.000579,120]
[321186049,1711953056795,-170.23708636,0.000579,120]
[321186050,1711953056805,-170.23708636,0.000579,120]
[321186051,1711953056814,-1843.4395195,0.00057914,36]
[321186052,1711953056824,-4144.34955295,0.00058,7]
[321186053,1711953056950,-150.0,0.00058,13]
[321186054,1711953056960,-962.0,0.00058068,120]
[321186055,1711953056970,-458.0,0.00058068,120]
[321186056,1711953056979,-2160.718,0.00058068,120]
[321186057,1711953056988,-1178.0,0.00058068,120]
[321186058,1711953056998,-683.327,0.00058068,120]
[321186059,1711953057007,-150.718,0.00058068,120]
[321186060,1711953057017,-538.0,0.00058068,120]
[321186061,1711953057027,-211.0,0.00058068,120]
[321186062,1711953057036,-1463.0,0.00058068,120]
[321186063,1711953057045,-592.45,0.00058081,120]
[321186064,1711953057054,-500.0,0.00058082,120]
[321186065,1711953057063,-737.05,0.00058082,120]
[321186066,1711953057073,-500.0,0.00058082,120]
[321186067,1711953057082,-886.64,0.00058082,120]
[321186068,1711953057091,-500.0,0.00058082,120]
[321186069,1711953057100,-652.51,0.00058082,120]
[321186070,1711953057109,-500.0,0.00058082,120]
[321186071,1711953057118,-620.9,0.00058082,120]
[321186072,1711953057128,-500.0,0.00058082,120]
[321186073,1711953057137,-731.96,0.00058082,120]
[321186074,1711953057147,-1560.47,0.00058082,120]
[321186075,1711953057156,-1076.22,0.00058082,120]
[321186076,1711953057166,-500.0,0.00058082,120]
[321186077,1711953057175,-1147.31,0.00058082,120]
[321186078,1711953057186,-1399.97,0.00058082,120]
[321186079,1711953057195,-2821.67,0.00058082,120]
[321186080,1711953057205,-500.0,0.00058082,120]
[321186081,1711953057215,-570.92,0.00058082,120]
[321186082,1711953057225,-698.71,0.00058082,120]
[321186083,1711953057234,-1121.07,0.00058082,120]
[321186084,1711953057244,-500.0,0.00058082,120]
[321186085,1711953057254,-20.46178015,0.00058082,120]
[321186103,1711953245376,170.91,0.00033728,2]
[321186104,1711953291163,155.0,0.00033728,2]
[321186105,1711953303156,155.0,0.00033728,2]
[321186106,1711953323174,191.193113,0.00033728,2]
[321186110,1711953704212,-203.0,0.000373,3]
[321186111,1711953715417,-1050.38908297,0.00039889,4]
[321186112,1711953725670,-1000.0,0.000406,15]
[321186113,1711953737595,350.0,0.00033,3]
[321186114,1711953738645,400.0,0.00035,3]
[321186115,1711953742516,-550.0,0.00040599,5]
[321186116,1711953745883,-450.0,0.00037,3]
[321186117,1711953745906,-156.21,0.00037808,2]
[321186118,1711953745928,-156.26944668,0.00038811,2]
[321186119,1711953745951,-169.93,0.00038911,2]
[321186120,1711953745978,-156.26944666,0.00039301,2]
[321186121,1711953746002,-156.26944666,0.0003979,2]
[321186122,1711953746025,-161.35982493,0.0003989,2]
[321186123,1711953746047,-7432.5456,0.0003989,2]
[321186124,1711953746070,-556.20092979,0.0003999,4]
[321186125,1711953746091,-172.2305523,0.0003999,4]
[321186126,1711953746112,-300.0,0.00040599,3]
[321186127,1711953746133,-310.72,0.000406,2]
[321186128,1711953746154,-499.99,0.000406,2]
[321186129,1711953757298,-1000.0,0.000409,15]
[321186130,1711953778190,-1000.0,0.000412,15]
[321186131,1711953778211,-1000.0,0.000415,15]
[321186132,1711953792817,-1000.0,0.000418,15]
[321186133,1711953793949,-1000.0,0.000421,15]
[321186134,1711953797386,-1000.0,0.00043,30]
[321186135,1711953797820,-1000.0,0.000424,15]
[321186136,1711953797841,-1000.0,0.000427,15]
[321186137,1711953810676,-700.25938865,0.00041095,4]
[321186138,1711953810700,-177.67,0.00041096,2]
[321186139,1711953810722,-150.99,0.000415,10]
[321186140,1711953810744,-1338.38061135,0.000415,2]
[321186142,1711953846106,5000.0,0.00043021,120]
[321186143,1711953871376,5000.0,0.00043021,120]
[321186144,1711953893098,5000.0,0.00043021,120]
[321186145,1711953919606,5000.0,0.00043021,120]
[321186146,1711953942621,5000.0,0.00043021,120]
[321186148,1711953964562,5000.0,0.00043021,120]
[321186149,1711953996080,5000.0,0.00043021,120]
[321186150,1711954000251,-156.14,0.00037808,2]
[321186151,1711954015629,5000.0,0.00043021,120]
[321186152,1711954017973,-583.54949054,0.00040876,4]
[321186154,1711954030304,-377.18931,0.00040877,2]
[321186155,1711954049340,5000.0,0.00043021,120]
[321186156,1711954070066,5000.0,0.00043021,120]
[321186157,1711954095269,5000.0,0.00043021,120]
[321186158,1711954107411,-466.83959243,0.00042772,4]
[321186159,1711954123853,5000.0,0.00043021,120]
[321186160,1711954126229,-1000.0,0.000433,15]
[321186167,1711954148465,5000.0,0.00043021,120]
[321186168,1711954151343,-382.09,0.00042773,2]
[321186169,1711954151366,-161.35982493,0.00042988,2]
[321186170,1711954172641,-410.0,0.00043086,5]
[321186171,1711954172662,-466.83959243,0.00043086,4]
[321186172,1711954172684,-10381.57721101,0.00043087,4]
[321186173,1711954172706,-8829.42264107,0.00043088,4]
[321186174,1711954174536,5000.0,0.00043021,120]
[321186175,1711954179990,-11258.41680344,0.00043088,4]
[321186178,1711954191813,-161.35982493,0.00044976,2]
[321186179,1711954200426,150.0,0.000406,15]
[321186180,1711954201328,500.0,0.000409,15]
[321186181,1711954201704,1000.0,0.000412,15]
[321186182,1711954201891,5000.0,0.00043021,120]
[321186183,1711954201988,1000.0,0.000415,15]
[321186184,1711954202238,1000.0,0.000418,15]
[321186185,1711954202501,1000.0,0.000421,15]
[321186186,1711954202782,1000.0,0.000424,15]
[321186187,1711954203034,1000.0,0.000427,15]
[321186188,1711954203293,1000.0,0.00043,15]
[321186189,1711954203550,1000.0,0.000433,15]
[321186190,1711954203792,1000.0,0.000436,15]
[321186191,1711954204053,605.78709644,0.000439,15]
[321186192,1711954221269,5000.0,0.00043021,120]
[321186230,1711954232129,-394.21290356,0.000439,15]
[321186233,1711954232139,-1000.0,0.000442,15]
[321186234,1711954232151,-1000.0,0.000445,15]
[321186235,1711954232161,-1000.0,0.000448,15]
[321186236,1711954232172,-399.82158884,0.00044976,2]
[321186237,1711954232182,-1000.0,0.000451,15]
[321186238,1711954232193,-1000.0,0.000454,15]
[321186239,1711954232203,-156.21,0.00045437,2]
[321186240,1711954232213,-1000.0,0.000457,15]
[321186241,1711954232223,-1000.0,0.00046,15]
[321186242,1711954232235,-1000.0,0.000463,15]
[321186243,1711954232244,-1000.0,0.000466,15]
[321186244,1711954232254,-499.99,0.00046603,2]
[321186245,1711954232264,-877.93,0.00046603,2]
[321186246,1711954232274,-1000.0,0.000469,15]
[321186247,1711954232284,-161.35982493,0.00046963,2]
[321186248,1711954232294,-1000.0,0.000472,15]
[321186249,1711954232304,-1000.0,0.000475,15]
[321186250,1711954232314,-1000.0,0.000478,15]
[321186251,1711954232324,-151.0,0.00048,120]
[321186252,1711954232334,-1000.0,0.000481,15]
[321186253,1711954232344,-1000.0,0.000484,15]
[321186254,1711954232354,-6546.22163239,0.00048504,2]
[321186255,1711954232364,-518.72,0.00048604,120]
[321186256,1711954232374,-1000.0,0.000487,15]
[321186257,1711954232384,-161.35982493,0.00048951,2]
[321186258,1711954232393,-1000.0,0.00049,15]
[321186259,1711954232404,-308.99,0.00049206,2]
[321186260,1711954232414,-1000.0,0.000493,15]
[321186261,1711954232424,-1000.0,0.000496,15]
[321186262,1711954232435,-466.83959243,0.00049799,4]
[321186263,1711954232445,-20752.97932648,0.000498,60]
[321186264,1711954232455,-1000.0,0.000499,15]
[321186265,1711954232465,-2105.0,0.00050089,117]
[321186267,1711954232681,-150.99,0.00050089,30]
[321186268,1711954232694,-1000.0,0.000502,15]
[321186269,1711954232703,-1000.0,0.000505,15]
[321186271,1711954232712,-621.93,0.00050711,2]
[321186273,1711954232722,-500.0,0.00050711,2]
[321186275,1711954232731,-250.0,0.00050723,120]
[321186277,1711954232743,-1000.0,0.000508,15]
[321186279,1711954232752,-150.58,0.00050896,120]
[321186281,1711954232761,-161.35982493,0.00050939,2]
[321186283,1711954232770,-500.0,0.00050942,2]
[321186284,1711954232779,-250.0,0.00050944,120]
[321186286,1711954232788,-157.5,0.00051096,120]
[321186288,1711954232798,-1000.0,0.000511,15]
[321186290,1711954232807,-154.5,0.00051104,2]
[321186292,1711954232817,-179.0,0.00051142,2]
[321186294,1711954232826,-150.0,0.00051328,2]
[321186296,1711954232837,-23900.0,0.00051396,2]
[321186297,1711954232846,-1000.0,0.000514,15]
[321186298,1711954232856,-549.27,0.00051421,2]
[321186299,1711954232865,-8116.91,0.00051435,2]
[321186300,1711954232874,-308.99,0.0005147,2]
[321186301,1711954232883,-154.5,0.00051636,2]
[321186302,1711954232892,-850.6,0.00051699,10]
[321186303,1711954232902,-1000.0,0.000517,15]
[321186304,1711954232911,-6546.22163238,0.00051709,120]
[321186305,1711954232920,-1000.0,0.00051754,120]
[321186306,1711954232930,-1000.0,0.00052,15]
[321186307,1711954232939,-154.5,0.00052169,2]
[321186308,1711954232948,-1000.0,0.000523,15]
[321186309,1711954232957,-1000.0,0.000526,15]
[321186310,1711954232966,-154.5,0.00052701,2]
[321186311,1711954232975,-1000.0,0.000529,15]
[321186312,1711954232986,-161.35982493,0.00052926,2]
[321186313,1711954232995,-156.21,0.00053066,2]
[321186314,1711954233004,-1000.0,0.000532,15]
[321186315,1711954233014,-154.5,0.00053234,2]
[321186316,1711954233024,-1020.73,0.0005344,10]
[321186317,1711954233033,-621.93,0.0005345,2]
[321186318,1711954233042,-1000.0,0.000535,15]
[321186319,1711954233051,-308.99,0.00053733,2]
[321186320,1711954233061,-154.5,0.00053767,2]
[321186321,1711954233070,-1000.0,0.000538,15]
[321186322,1711954233079,-205.55946484,0.00053999,4]
[321186323,1711954233091,-1000.0,0.000541,15]
[321186324,1711954233100,-1000.0,0.000544,15]
[321186325,1711954233111,-1000.0,0.000547,15]
[321186326,1711954233120,-500.0,0.00054794,120]
[321186327,1711954233133,-163.73525726,0.00054794,120]
[321186328,1711954233142,-541.85,0.00054794,120]
[321186329,1711954233153,-500.0,0.00054794,2]
[321186330,1711954233162,-2503.11734805,0.000548,30]
[321186331,1711954233171,-303.99399441,0.00054914,2]
[321186332,1711954233180,-161.35982493,0.00054914,2]
[321186333,1711954233189,-168.27004528,0.00054914,14]
[321186334,1711954233199,-6546.22163238,0.00054914,120]
[321186335,1711954233209,-516.58215139,0.00054914,30]
[321186336,1711954233219,-156.90194137,0.0005499,2]
[321186337,1711954233228,-150.72,0.0005499,120]
[321186338,1711954233238,-150.72,0.0005499,120]
[321186339,1711954233247,-150.72,0.0005499,120]
[321186340,1711954233256,-188.84,0.0005499,30]
[321186341,1711954233264,-188.84,0.0005499,30]
[321186342,1711954233273,-188.84,0.0005499,30]
[321186343,1711954233283,-188.84,0.0005499,30]
[321186344,1711954233292,-188.84,0.0005499,30]
[321186345,1711954233301,-188.84,0.0005499,30]
[321186346,1711954233310,-188.84,0.0005499,30]
[321186347,1711954233319,-500.0,0.00054999,120]
[321186348,1711954233328,-500.0,0.00054999,120]
[321186349,1711954233337,-500.0,0.00054999,120]
[321186350,1711954233347,-500.0,0.00054999,120]
[321186351,1711954233357,-500.0,0.00054999,120]
[321186352,1711954233367,-500.0,0.00054999,120]
[321186353,1711954233376,-333.51350846,0.00054999,120]
[321186354,1711954233385,-500.0,0.00054999,120]
[321186355,1711954233395,-375.89141378,0.00054999,120]
[321186356,1711954233404,-500.0,0.00054999,120]
[321186357,1711954233414,-500.0,0.00054999,120]
[321186358,1711954233423,-579.08,0.00054999,120]
[321186359,1711954233433,-500.0,0.00054999,120]
[321186360,1711954233443,-500.0,0.00054999,120]
[321186361,1711954233453,-500.0,0.00054999,120]
[321186362,1711954233462,-500.0,0.00054999,120]
[321186363,1711954233471,-500.0,0.00054999,120]
[321186364,1711954233481,-500.0,0.00054999,120]
[321186365,1711954233493,-500.0,0.00054999,120]
[321186366,1711954233502,-500.0,0.00054999,120]
[321186367,1711954233512,-500.0,0.00054999,120]
[321186368,1711954233521,-1094.36,0.00054999,120]
[321186369,1711954233530,-500.0,0.00054999,120]
[321186370,1711954233539,-715.21,0.00054999,120]
[321186371,1711954233549,-829.0,0.00054999,120]
[321186372,1711954233558,-500.0,0.00054999,120]
[321186373,1711954233568,-525.86,0.00054999,120]
[321186374,1711954233577,-500.0,0.00054999,120]
[321186375,1711954233586,-500.0,0.00054999,120]
[321186376,1711954233596,-500.0,0.00054999,120]
[321186377,1711954233606,-1293.27,0.00054999,120]
[321186378,1711954233616,-500.0,0.00054999,120]
[321186379,1711954233626,-500.0,0.00054999,120]
[321186380,1711954233635,-500.0,0.00054999,120]
[321186381,1711954233644,-500.0,0.00054999,120]
[321186382,1711954233654,-500.0,0.00054999,120]
[321186383,1711954233664,-641.65,0.00054999,120]
[321186384,1711954233674,-500.0,0.00054999,21]